[Event "Vasteras Open 2018"]
[Site "Vasteras"]
[Date "2018.09.28"]
[Round "1"]
[White "Lindberg, Bengt"]
[Black "Andersson, Kjell-Ake"]
[Result "1-0"]
[ECO "B14"]
[WhiteElo "2406"]
[BlackElo "1940"]
[Annotator "NA"]
[PlyCount "43"]
[EventDate "2018.09.28"]
[EventCountry "SWE"]
[SourceTitle "playchess.com"]
[Source "ChessBase"]
[SourceQuality "1"]
[TimeControl "900+5"]

1. e4 {[%emt 0:00:00]} c6 {[%emt 0:00:05]} 2. d4 {[%emt 0:00:00]} d5 {[%emt 0:00:06]} 3. exd5 {[%emt 0:00:04]} cxd5 {[%emt 0:00:06]} 4. c4 {[%emt 0:00:04]} Nf6 {[%emt 0:00:41]} 5. Nc3 {[%emt 0:00:03]} e6 {[%emt 0:00:44]} 6. Nf3 {[%emt 0:00:06]} Be7 {[%emt 0:00:08]} 7. cxd5 {[%emt 0:00:03]} Nxd5 {[%emt 0:00:10]} 8. Bd3 {[%emt 0:00:05]} Nc6 {[%emt 0:00:47]} 9. O-O {[%emt 0:00:04]} O-O {[%emt 0:00:26]} 10. Re1 {[%emt 0:00:19]} Bf6 {[%emt 0:01:04]} 11. Be4 {[%emt 0:00:12]} Nce7 {[%emt 0:01:20]} 12. Ne5 {[%emt 0:00:24]} b6 {[%emt 0:01:53]} 13. Ng4 {[%emt 0:00:52]} Bb7 {[%emt 0:02:24]} 14. Nxf6+ {[%emt 0:00:38]} gxf6 {[%emt 0:00:06]} 15. Bh6 {[%emt 0:01:06]} f5 {[%emt 0:02:07]} 16. Bxf8 {[%emt 0:02:13]} Qxf8 {[%emt 0:00:15]} 17. Bf3 {[%emt 0:00:03]} Rc8 {[%emt 0:00:18]} 18. Rc1 {[%emt 0:00:16]} Nxc3 {[%emt 0:00:35]} 19. Rxc3 {[%emt 0:00:03]} Nd5 {[%emt 0:00:29]} 20. Rxc8 {[%emt 0:00:05]} Qxc8 {[%emt 0:00:08]} 21. Qd2 {[%emt 0:00:02]} Qd8 {[%emt 0:00:26]} 22. Qh6 {[%emt 0:00:32]} 1-0

[Event "Vasteras Open 2018"]
[Site "Vasteras"]
[Date "2018.09.28"]
[Round "1"]
[White "Krupenski, Juri"]
[Black "Kruuse, Peter"]
[Result "1-0"]
[ECO "C10"]
[WhiteElo "2402"]
[BlackElo "1923"]
[Annotator "NA"]
[PlyCount "61"]
[EventDate "2018.09.28"]
[EventCountry "SWE"]
[SourceTitle "playchess.com"]
[Source "ChessBase"]
[SourceQuality "1"]
[TimeControl "900+5"]

1. d4 {[%emt 0:00:01]} e6 {[%emt 0:00:00]} 2. e4 {[%emt 0:00:23]} d5 {[%emt 0:00:03]} 3. Nd2 {[%emt 0:00:04]} dxe4 {[%emt 0:00:11]} 4. Nxe4 {[%emt 0:00:02]} Nd7 {[%emt 0:00:01]} 5. Nf3 {[%emt 0:00:12]} Ngf6 {[%emt 0:00:01]} 6. Nxf6+ {[%emt 0:01:54]} Nxf6 {[%emt 0:00:03]} 7. Bd3 {[%emt 0:00:01]} c5 {[%emt 0:00:03]} 8. O-O {[%emt 0:00:07]} cxd4 {[%emt 0:00:11]} 9. Nxd4 {[%emt 0:00:05]} Be7 {[%emt 0:00:09]} 10. c3 {[%emt 0:00:48]} O-O {[%emt 0:00:04]} 11. Re1 {[%emt 0:00:11]} Bd7 {[%emt 0:00:07]} 12. Bf4 {[%emt 0:00:59]} Rc8 {[%emt 0:00:15]} 13. Qb3 {[%emt 0:00:44]} Bc6 {[%emt 0:00:12]} 14. Rad1 {[%emt 0:00:52]} Qd5 {[%emt 0:00:41]} 15. Nxc6 {[%emt 0:00:15]} Qxc6 {[%emt 0:00:09]} 16. h3 {[%emt 0:01:18]} Rfd8 {[%emt 0:00:02]} 17. Be2 {[%emt 0:00:47]} Rxd1 {[%emt 0:00:06]} 18. Rxd1 {[%emt 0:00:05]} Rd8 {[%emt 0:00:18]} 19. Rxd8+ {[%emt 0:00:23]} Bxd8 {[%emt 0:00:01]} 20. Bf3 {[%emt 0:00:04]} Qa6 {[%emt 0:06:59]} 21. Qxb7 {[%emt 0:03:05]} Qxb7 {[%emt 0:01:31]} 22. Bxb7 {[%emt 0:00:02]} Nd5 {[%emt 0:00:46]} 23. Bd2 {[%emt 0:00:11]} Bb6 {[%emt 0:00:36]} 24. Bxd5 {[%emt 0:00:02]} exd5 {[%emt 0:00:01]} 25. Be3 {[%emt 0:00:01]} Kf8 {[%emt 0:00:33]} 26. Bxb6 {[%emt 0:00:06]} axb6 {[%emt 0:00:01]} 27. Kf1 {[%emt 0:00:13]} Ke7 {[%emt 0:00:01]} 28. Ke2 {[%emt 0:00:00]} Kd6 {[%emt 0:00:01]} 29. Kd3 {[%emt 0:00:02]} Ke5 {[%emt 0:00:11]} 30. a4 {[%emt 0:00:03]} f5 {[%emt 0:00:04]} 31. b4 {[%emt 0:00:02]} 1-0

[Event "Vasteras Open 2018"]
[Site "Vasteras"]
[Date "2018.09.28"]
[Round "1"]
[White "Seo, Jung Min"]
[Black "Orell, Martin"]
[Result "1-0"]
[ECO "B06"]
[WhiteElo "2360"]
[BlackElo "1903"]
[Annotator "NA"]
[PlyCount "53"]
[EventDate "2018.09.28"]
[EventCountry "SWE"]
[SourceTitle "playchess.com"]
[Source "ChessBase"]
[SourceQuality "1"]
[TimeControl "900+5"]

1. e4 {[%emt 0:00:00]} g6 {[%emt 0:00:00]} 2. d4 {[%emt 0:00:00]} Bg7 {[%emt 0:00:03]} 3. Nc3 {[%emt 0:00:09]} d5 {[%emt 0:00:18]} 4. exd5 {[%emt 0:01:13]} Nf6 {[%emt 0:00:05]} 5. Bb5+ {[%emt 0:00:03]} Nbd7 {[%emt 0:00:05]} 6. Nge2 {[%emt 0:00:08]} O-O {[%emt 0:00:35]} 7. O-O {[%emt 0:00:05]} Nb6 {[%emt 0:00:08]} 8. Nf4 {[%emt 0:00:28]} Nbxd5 {[%emt 0:00:19]} 9. Ncxd5 {[%emt 0:00:02]} Nxd5 {[%emt 0:00:02]} 10. c3 {[%emt 0:00:03]} Bf5 {[%emt 0:00:47]} 11. Qf3 {[%emt 0:00:31]} c6 {[%emt 0:00:13]} 12. Bc4 {[%emt 0:00:10]} Nxf4 {[%emt 0:00:38]} 13. Bxf4 {[%emt 0:00:03]} Qd7 {[%emt 0:00:09]} 14. Rfe1 {[%emt 0:00:13]} Rfe8 {[%emt 0:01:32]} 15. h3 {[%emt 0:00:09]} h5 {[%emt 0:01:46]} 16. Be5 {[%emt 0:00:30]} Bxe5 {[%emt 0:01:43]} 17. Rxe5 {[%emt 0:00:01]} Kg7 {[%emt 0:00:36]} 18. Rae1 {[%emt 0:00:03]} Qd6 {[%emt 0:01:13]} 19. R5e3 {[%emt 0:00:39]} Rad8 {[%emt 0:00:15]} 20. g4 {[%emt 0:00:13]} hxg4 {[%emt 0:00:04]} 21. hxg4 {[%emt 0:00:01]} Be6 {[%emt 0:01:40]} 22. Bxe6 {[%emt 0:00:03]} fxe6 {[%emt 0:00:02]} 23. Rxe6 {[%emt 0:00:03]} Qd5 {[%emt 0:00:02]} 24. Rxe7+ {[%emt 0:00:11]} Rxe7 {[%emt 0:00:18]} 25. Rxe7+ {[%emt 0:00:01]} Kh6 {[%emt 0:00:03]} 26. Qf4+ {[%emt 0:00:22]} g5 {[%emt 0:00:08]} 27. Qf6# {[%emt 0:00:02]} 1-0

[Event "Vasteras Open 2018"]
[Site "Vasteras"]
[Date "2018.09.28"]
[Round "1"]
[White "Gajic, Zoran"]
[Black "Lokander, Martin"]
[Result "0-1"]
[ECO "A45"]
[WhiteElo "2267"]
[BlackElo "2384"]
[Annotator "NA"]
[PlyCount "70"]
[EventDate "2018.09.28"]
[EventCountry "SWE"]
[SourceTitle "playchess.com"]
[Source "ChessBase"]
[SourceQuality "1"]
[TimeControl "900+5"]

1. d4 {[%emt 0:00:00]} Nf6 {[%emt 0:00:00]} 2. Bg5 {[%emt 0:00:01]} c5 {[%emt 0:00:06]} 3. d5 {[%emt 0:00:05]} d6 {[%emt 0:00:08]} 4. Nc3 {[%emt 0:00:22]} Nbd7 {[%emt 0:00:14]} 5. e4 {[%emt 0:00:12]} g6 {[%emt 0:00:02]} 6. f4 {[%emt 0:00:16]} Bg7 {[%emt 0:00:13]} 7. Nf3 {[%emt 0:00:05]} Qa5 8. Bd3 {[%emt 0:01:18]} c4 {[%emt 0:01:23]} 9. Bxc4 {[%emt 0:01:17]} Nxe4 {[%emt 0:00:02]} 10. O-O {[%emt 0:00:53]} Qc5+ {[%emt 0:00:06]} 11. Kh1 {[%emt 0:00:14]} Nxc3 {[%emt 0:00:08]} 12. bxc3 {[%emt 0:00:09]} Qxc4 {[%emt 0:00:05]} 13. Re1 {[%emt 0:00:15]} Bf6 {[%emt 0:00:09]} 14. Rxe7+ {[%emt 0:00:29]} Bxe7 {[%emt 0:00:17]} 15. Qe1 {[%emt 0:00:02]} f6 {[%emt 0:00:15]} 16. Bh6 {[%emt 0:00:03]} Nc5 {[%emt 0:00:56]} 17. Bg7 {[%emt 0:00:29]} Rg8 {[%emt 0:00:00]} 18. Bxf6 {[%emt 0:00:01]} Qe4 {[%emt 0:00:01]} 19. Bxe7 {[%emt 0:00:11]} Kxe7 {[%emt 0:00:23]} 20. Qd2 {[%emt 0:00:02]} Kd8 {[%emt 0:00:32]} 21. Re1 {[%emt 0:00:25]} Qf5 {[%emt 0:00:05]} 22. Qe3 {[%emt 0:00:30]} Qf6 {[%emt 0:01:06]} 23. Nd4 {[%emt 0:01:45]} Bd7 {[%emt 0:00:05]} 24. f5 {[%emt 0:00:17]} gxf5 {[%emt 0:00:10]} 25. Rf1 {[%emt 0:00:16]} Kc7 {[%emt 0:00:12]} 26. c4 {[%emt 0:00:09]} Rae8 {[%emt 0:00:09]} 27. Qc3 {[%emt 0:00:06]} Ne4 {[%emt 0:00:17]} 28. Qa5+ {[%emt 0:00:05]} Kb8 {[%emt 0:00:02]} 29. Nc6+ {[%emt 0:00:24]} Bxc6 {[%emt 0:00:14]} 30. dxc6 {[%emt 0:00:00]} Nf2+ {[%emt 0:00:25]} 31. Kg1 {[%emt 0:00:11]} Nh3+ {[%emt 0:00:03]} 32. Kh1 {[%emt 0:00:02]} Nf2+ {[%emt 0:04:33]} 33. Kg1 {[%emt 0:00:07]} Ng4 {[%emt 0:00:16]} 34. c3 {[%emt 0:00:25]} Qe5 {[%emt 0:00:13]} 35. Rb1 {[%emt 0:01:35]} Qe1+ {[%emt 0:00:09]} 0-1

[Event "Vasteras Open 2018"]
[Site "Vasteras"]
[Date "2018.09.28"]
[Round "1"]
[White "Ranby, Hans"]
[Black "Cramling, Pia"]
[Result "0-1"]
[ECO "A05"]
[WhiteElo "1952"]
[BlackElo "2465"]
[Annotator "RC"]
[PlyCount "70"]
[EventDate "2018.09.28"]
[EventCountry "SWE"]
[SourceTitle "playchess.com"]
[Source "ChessBase"]
[SourceQuality "1"]
[TimeControl "900+5"]

1. Nf3 {[%emt 0:00:00]} Nf6 {[%emt 0:00:16]} 2. e3 {[%emt 0:00:02]} g6 {[%emt 0:00:09]} 3. b3 {[%emt 0:00:03]} Bg7 {[%emt 0:00:02]} 4. Bb2 {[%emt 0:00:02]} O-O {[%emt 0:00:03]} 5. c4 {[%emt 0:00:10]} c5 {[%emt 0:00:26]} 6. Be2 {[%emt 0:00:10]} d6 {[%emt 0:00:19]} 7. O-O {[%emt 0:00:16]} e5 {[%emt 0:00:07]} 8. d3 {[%emt 0:00:23]} Nc6 {[%emt 0:00:14]} 9. Nbd2 {[%emt 0:00:13]} b6 {[%emt 0:00:26]} 10. a3 {[%emt 0:00:50]} Re8 {[%emt 0:00:12]} 11. Qc2 {[%emt 0:00:03]} Bb7 {[%emt 0:00:18]} 12. Rad1 {[%emt 0:00:59]} d5 {[%emt 0:00:18]} 13. cxd5 {[%emt 0:00:34]} Nxd5 {[%emt 0:00:03]} 14. Nc4 {[%emt 0:00:46]} Rc8 {[%emt 0:00:24]} 15. Qb1 {[%emt 0:00:25]} Qe7 {[%emt 0:00:14]} 16. Qa1 {[%emt 0:01:14]} Rcd8 {[%emt 0:01:26]} 17. Rc1 {[%emt 0:00:53]} f5 {[%emt 0:01:01]} 18. Rfd1 {[%emt 0:01:07]} g5 {[%emt 0:01:27]} 19. Qa2 {[%emt 0:00:59]} g4 {[%emt 0:00:19]} 20. Ne1 {[%emt 0:00:19]} Kh8 {[%emt 0:00:13]} 21. Nc2 {[%emt 0:00:35]} Rd7 {[%emt 0:01:03]} 22. e4 {[%emt 0:00:51]} Nf4 {[%emt 0:00:20]} 23. Bf1 {[%emt 0:00:12]} Nd4 {[%emt 0:00:32]} 24. Nxd4 {[%emt 0:00:18]} exd4 {[%emt 0:00:10]} 25. exf5 {[%emt 0:00:37]} Qg5 {[%emt 0:00:18]} 26. Ba1 {[%emt 0:00:34]} Nh3+ {[%emt 0:00:31]} 27. Kh1 {[%emt 0:00:14]} Qxf5 {[%emt 0:00:04]} 28. Re1 {[%emt 0:00:33]} Rf8 {[%emt 0:00:24]} 29. Qd2 {[%emt 0:00:30]} Bh6 {[%emt 0:01:10]} 30. Qxh6 {[%emt 0:00:17]} Qxf2 {[%emt 0:00:04]} 31. Qxf8+ {[%emt 0:00:49]} Qxf8 {[%emt 0:00:02]} 32. Re2 {[%emt 0:00:16]} Re7 {[%emt 0:00:14]} 33. Ne5 {[%emt 0:00:27]} Rxe5 {[%emt 0:00:39]} 34. Rce1 {[%emt 0:00:30]} Rxe2 {[%emt 0:00:06]} 35. Bxe2 {[%emt 0:00:05]} Qf2 {[%emt 0:00:03]} 0-1

[Event "Vasteras Open 2018"]
[Site "Vasteras"]
[Date "2018.09.28"]
[Round "1"]
[White "Larsson, Per-Olov"]
[Black "Von Bahr, Oskar"]
[Result "0-1"]
[ECO "C77"]
[WhiteElo "1944"]
[BlackElo "2418"]
[Annotator "NA"]
[PlyCount "68"]
[EventDate "2018.09.28"]
[EventCountry "SWE"]
[SourceTitle "playchess.com"]
[Source "ChessBase"]
[SourceQuality "1"]
[TimeControl "900+5"]

1. e4 {[%emt 0:00:00]} e5 {[%emt 0:00:00]} 2. Nf3 {[%emt 0:00:02]} Nc6 {[%emt 0:00:00]} 3. Bb5 a6 4. Ba4 {[%emt 0:00:07]} Nf6 {[%emt 0:00:00]} 5. d3 {[%emt 0:00:07]} d6 {[%emt 0:00:15]} 6. c3 {[%emt 0:00:10]} Be7 {[%emt 0:00:08]} 7. Nbd2 {[%emt 0:00:08]} O-O {[%emt 0:00:04]} 8. O-O {[%emt 0:00:04]} b5 {[%emt 0:00:30]} 9. Bc2 {[%emt 0:00:10]} d5 {[%emt 0:00:09]} 10. d4 {[%emt 0:00:42]} exd4 {[%emt 0:01:47]} 11. Nxd4 {[%emt 0:00:55]} Nxd4 {[%emt 0:00:20]} 12. cxd4 {[%emt 0:00:02]} dxe4 {[%emt 0:00:15]} 13. Nxe4 {[%emt 0:00:04]} Bb7 {[%emt 0:00:16]} 14. Nc5 {[%emt 0:03:01]} Bc6 {[%emt 0:00:17]} 15. Be3 {[%emt 0:01:54]} Qd5 {[%emt 0:00:13]} 16. f3 {[%emt 0:00:12]} Rfe8 {[%emt 0:00:20]} 17. Ne4 {[%emt 0:00:52]} Rad8 {[%emt 0:00:25]} 18. Bf2 {[%emt 0:00:18]} Ba8 {[%emt 0:00:39]} 19. Qd3 {[%emt 0:00:17]} Nxe4 {[%emt 0:00:28]} 20. fxe4 {[%emt 0:00:04]} Qh5 {[%emt 0:00:10]} 21. Bd1 {[%emt 0:00:19]} Qg6 {[%emt 0:00:07]} 22. Bf3 {[%emt 0:00:02]} c5 {[%emt 0:00:15]} 23. Qa3 {[%emt 0:00:50]} cxd4 {[%emt 0:00:21]} 24. Qa5 {[%emt 0:00:02]} Bc5 {[%emt 0:00:42]} 25. Rfe1 {[%emt 0:00:16]} Qb6 {[%emt 0:00:12]} 26. Qxb6 {[%emt 0:00:12]} Bxb6 {[%emt 0:00:01]} 27. Rad1 {[%emt 0:00:01]} f6 {[%emt 0:01:02]} 28. Rd3 {[%emt 0:00:15]} Kf7 {[%emt 0:00:11]} 29. h4 {[%emt 0:01:50]} Re7 {[%emt 0:00:10]} 30. g3 {[%emt 0:00:30]} Rde8 {[%emt 0:00:13]} 31. Red1 {[%emt 0:00:18]} Bxe4 {[%emt 0:00:11]} 32. Bxe4 {[%emt 0:00:03]} Rxe4 {[%emt 0:00:01]} 33. Bxd4 {[%emt 0:00:04]} Rxd4 {[%emt 0:00:05]} 34. Rxd4 {[%emt 0:00:03]} Rd8 {[%emt 0:00:05]} 0-1

[Event "Vasteras Open 2018"]
[Site "Vasteras"]
[Date "2018.09.28"]
[Round "1"]
[White "Berg Laachiri, Susanna"]
[Black "Livner, Anders"]
[Result "1/2-1/2"]
[ECO "B14"]
[WhiteElo "1903"]
[BlackElo "2372"]
[Annotator "NA"]
[PlyCount "55"]
[EventDate "2018.09.28"]
[EventCountry "SWE"]
[SourceTitle "playchess.com"]
[Source "ChessBase"]
[SourceQuality "1"]
[TimeControl "900+5"]

1. e4 {[%emt 0:00:00]} c6 {[%emt 0:00:00]} 2. d4 {[%emt 0:00:03]} d5 {[%emt 0:00:00]} 3. exd5 {[%emt 0:00:05]} cxd5 {[%emt 0:00:00]} 4. c4 {[%emt 0:00:04]} Nf6 {[%emt 0:00:00]} 5. Nc3 {[%emt 0:00:03]} g6 {[%emt 0:00:14]} 6. Nf3 {[%emt 0:00:29]} Bg7 {[%emt 0:00:03]} 7. Be2 {[%emt 0:00:20]} O-O {[%emt 0:00:11]} 8. O-O {[%emt 0:00:03]} Nc6 {[%emt 0:00:26]} 9. a3 {[%emt 0:00:40]} Bg4 {[%emt 0:00:46]} 10. c5 {[%emt 0:01:18]} Ne4 {[%emt 0:00:24]} 11. Be3 {[%emt 0:00:23]} Rc8 {[%emt 0:02:32]} 12. h3 {[%emt 0:01:43]} Be6 {[%emt 0:00:36]} 13. Rc1 {[%emt 0:01:42]} f5 {[%emt 0:00:29]} 14. Bf4 {[%emt 0:01:08]} h6 {[%emt 0:00:29]} 15. h4 {[%emt 0:00:39]} Bf7 {[%emt 0:03:14]} 16. b4 {[%emt 0:00:11]} Nxd4 {[%emt 0:01:07]} 17. Nxd4 {[%emt 0:01:59]} e5 {[%emt 0:00:00]} 18. Nxe4 {[%emt 0:01:23]} dxe4 {[%emt 0:01:28]} 19. Nb5 {[%emt 0:00:22]} exf4 {[%emt 0:00:19]} 20. Qxd8 {[%emt 0:00:02]} Rcxd8 {[%emt 0:00:30]} 21. Nd6 {[%emt 0:00:41]} Bd5 {[%emt 0:00:36]} 22. Rcd1 {[%emt 0:00:15]} Bb3 {[%emt 0:00:05]} 23. Rb1 {[%emt 0:00:22]} Ba2 {[%emt 0:00:06]} 24. Rbd1 {[%emt 0:00:09]} Bb3 {[%emt 0:00:35]} 25. Rb1 {[%emt 0:00:21]} Ba2 {[%emt 0:00:05]} 26. Rbd1 {[%emt 0:00:03]} Bb3 {[%emt 0:00:36]} 27. Rb1 {[%emt 0:00:04]} Ba2 {[%emt 0:00:01]} 28. Rbd1 {[%emt 0:00:02]} 1/2-1/2

[Event "Vasteras Open 2018"]
[Site "Vasteras"]
[Date "2018.09.28"]
[Round "2"]
[White "Lokander, Martin"]
[Black "Trost, Edvin"]
[Result "1/2-1/2"]
[ECO "A05"]
[WhiteElo "2384"]
[BlackElo "2053"]
[Annotator "RC"]
[PlyCount "84"]
[EventDate "2018.09.28"]
[EventCountry "SWE"]
[SourceTitle "playchess.com"]
[Source "ChessBase"]
[SourceQuality "1"]
[TimeControl "900+5"]

1. Nf3 {[%emt 0:00:00]} Nf6 {[%emt 0:00:00]} 2. c4 {[%emt 0:00:00]} g6 {[%emt 0:00:00]} 3. Nc3 {[%emt 0:00:00]} d5 {[%emt 0:00:01]} 4. cxd5 {[%emt 0:00:01]} Nxd5 {[%emt 0:00:02]} 5. h4 {[%emt 0:00:02]} Nc6 {[%emt 0:02:11]} 6. e4 {[%emt 0:00:23]} Ndb4 {[%emt 0:00:37]} 7. d3 {[%emt 0:01:55]} Bg4 {[%emt 0:00:29]} 8. a3 {[%emt 0:00:13]} Bxf3 {[%emt 0:00:06]} 9. gxf3 {[%emt 0:00:04]} Na6 {[%emt 0:00:01]} 10. d4 {[%emt 0:00:45]} Qxd4 {[%emt 0:00:18]} 11. Be3 {[%emt 0:00:01]} Qxd1+ {[%emt 0:00:18]} 12. Rxd1 {[%emt 0:00:02]} e6 {[%emt 0:01:46]} 13. h5 {[%emt 0:01:15]} Bg7 {[%emt 0:00:17]} 14. hxg6 {[%emt 0:02:20]} hxg6 {[%emt 0:00:03]} 15. Rxh8+ {[%emt 0:00:01]} Bxh8 {[%emt 0:00:01]} 16. Rc1 {[%emt 0:01:13]} Nd4 {[%emt 0:01:34]} 17. Nb5 {[%emt 0:01:26]} Nxf3+ {[%emt 0:00:50]} 18. Ke2 {[%emt 0:00:11]} Ng1+ {[%emt 0:00:12]} 19. Ke1 {[%emt 0:00:09]} Nf3+ {[%emt 0:00:07]} 20. Ke2 {[%emt 0:00:12]} Ng1+ {[%emt 0:00:02]} 21. Kd3 {[%emt 0:00:19]} Rd8+ {[%emt 0:00:29]} 22. Kc2 {[%emt 0:00:05]} c6 {[%emt 0:00:10]} 23. Nxa7 {[%emt 0:00:09]} Nf3 {[%emt 0:00:55]} 24. Bxa6 {[%emt 0:01:11]} bxa6 {[%emt 0:00:03]} 25. Nxc6 {[%emt 0:00:06]} Rc8 {[%emt 0:00:40]} 26. Kb1 {[%emt 0:00:26]} Ne5 {[%emt 0:00:40]} 27. Nxe5 {[%emt 0:00:59]} Rxc1+ {[%emt 0:00:03]} 28. Kxc1 {[%emt 0:00:01]} Bxe5 {[%emt 0:00:01]} 29. b4 {[%emt 0:00:07]} f5 {[%emt 0:00:11]} 30. exf5 {[%emt 0:00:01]} gxf5 {[%emt 0:00:03]} 31. f3 {[%emt 0:00:05]} Kd7 {[%emt 0:00:03]} 32. Kc2 {[%emt 0:00:01]} Kc6 {[%emt 0:00:01]} 33. a4 {[%emt 0:00:10]} Kd5 {[%emt 0:01:57]} 34. Kd3 {[%emt 0:00:01]} Bd6 {[%emt 0:00:09]} 35. b5 {[%emt 0:00:18]} axb5 {[%emt 0:00:03]} 36. axb5 {[%emt 0:00:01]} e5 {[%emt 0:00:10]} 37. b6 {[%emt 0:00:22]} e4+ {[%emt 0:00:05]} 38. fxe4+ {[%emt 0:00:02]} fxe4+ {[%emt 0:00:02]} 39. Kc3 {[%emt 0:00:15]} Kc6 {[%emt 0:00:01]} 40. Kd4 {[%emt 0:00:06]} Bc5+ {[%emt 0:00:04]} 41. Kxe4 {[%emt 0:00:04]} Bxb6 {[%emt 0:00:02]} 42. Bxb6 {[%emt 0:00:02]} Kxb6 {[%emt 0:00:00]} 1/2-1/2

[Event "Vasteras Open 2018"]
[Site "Vasteras"]
[Date "2018.09.28"]
[Round "2"]
[White "Jogstad, Daniel"]
[Black "Seo, Jung Min"]
[Result "0-1"]
[ECO "B51"]
[WhiteElo "2046"]
[BlackElo "2360"]
[Annotator "RC"]
[PlyCount "126"]
[EventDate "2018.09.28"]
[EventCountry "SWE"]
[SourceTitle "playchess.com"]
[Source "ChessBase"]
[SourceQuality "1"]
[TimeControl "900+5"]

1. e4 {[%emt 0:00:00]} c5 {[%emt 0:00:00]} 2. Nf3 {[%emt 0:00:00]} d6 {[%emt 0:00:00]} 3. Bb5+ {[%emt 0:00:00]} Nd7 {[%emt 0:00:07]} 4. O-O {[%emt 0:00:03]} Ngf6 {[%emt 0:00:04]} 5. Re1 {[%emt 0:00:01]} g6 {[%emt 0:00:05]} 6. d4 {[%emt 0:02:02]} cxd4 {[%emt 0:00:02]} 7. Qxd4 {[%emt 0:00:01]} Bg7 {[%emt 0:00:03]} 8. e5 {[%emt 0:01:34]} dxe5 {[%emt 0:00:01]} 9. Qxe5 {[%emt 0:00:02]} O-O {[%emt 0:02:19]} 10. Qxe7 {[%emt 0:01:48]} Qa5 {[%emt 0:00:16]} 11. Bc4 {[%emt 0:00:02]} Nb6 {[%emt 0:00:24]} 12. Bd2 {[%emt 0:00:29]} Qh5 {[%emt 0:00:29]} 13. Bb3 {[%emt 0:01:38]} Nfd5 {[%emt 0:00:16]} 14. Qa3 {[%emt 0:02:27]} Bg4 {[%emt 0:00:08]} 15. Bxd5 {[%emt 0:00:06]} Nxd5 {[%emt 0:00:41]} 16. c4 {[%emt 0:00:42]} Bxf3 {[%emt 0:00:14]} 17. cxd5 {[%emt 0:00:09]} Bxd5 {[%emt 0:00:18]} 18. Nc3 {[%emt 0:00:04]} Bc6 {[%emt 0:00:06]} 19. Ne4 {[%emt 0:00:31]} Rfe8 {[%emt 0:00:25]} 20. f3 {[%emt 0:00:17]} Qb5 {[%emt 0:00:36]} 21. Rab1 {[%emt 0:01:10]} Bxe4 {[%emt 0:00:26]} 22. fxe4 {[%emt 0:00:11]} a6 {[%emt 0:00:35]} 23. Bc3 {[%emt 0:00:01]} Bxc3 {[%emt 0:00:11]} 24. bxc3 {[%emt 0:01:05]} Qc6 {[%emt 0:00:05]} 25. Qb3 {[%emt 0:00:27]} b5 {[%emt 0:00:05]} 26. Qd5 {[%emt 0:00:09]} Qxc3 {[%emt 0:00:20]} 27. Rbc1 {[%emt 0:00:10]} Qe5 {[%emt 0:00:04]} 28. Kh1 {[%emt 0:00:36]} Qxd5 {[%emt 0:00:10]} 29. exd5 {[%emt 0:00:01]} Rxe1+ {[%emt 0:00:00]} 30. Rxe1 {[%emt 0:00:01]} Rd8 31. Rd1 {[%emt 0:00:13]} Kg7 {[%emt 0:00:03]} 32. Kg1 {[%emt 0:00:06]} Kf6 {[%emt 0:00:12]} 33. Kf2 {[%emt 0:00:07]} Rd6 {[%emt 0:00:12]} 34. Rc1 {[%emt 0:00:20]} Ke5 {[%emt 0:00:07]} 35. Rc7 {[%emt 0:00:02]} Rf6+ {[%emt 0:00:03]} 36. Ke3 {[%emt 0:00:10]} Kxd5 {[%emt 0:00:02]} 37. g4 {[%emt 0:00:04]} h6 {[%emt 0:00:19]} 38. h4 {[%emt 0:00:02]} a5 {[%emt 0:00:08]} 39. a3 {[%emt 0:00:50]} g5 {[%emt 0:00:09]} 40. hxg5 {[%emt 0:00:28]} hxg5 {[%emt 0:00:01]} 41. Rb7 {[%emt 0:00:04]} Kc6 {[%emt 0:00:16]} 42. Ra7 {[%emt 0:00:03]} Kb6 {[%emt 0:00:01]} 43. Rd7 {[%emt 0:00:01]} Rf4 {[%emt 0:00:06]} 44. Re7 {[%emt 0:00:09]} Rxg4 {[%emt 0:00:05]} 45. Rxf7 {[%emt 0:00:04]} Rg3+ {[%emt 0:00:08]} 46. Kd4 {[%emt 0:00:01]} Rxa3 {[%emt 0:00:04]} 47. Rf6+ {[%emt 0:00:01]} Kc7 {[%emt 0:00:03]} 48. Rf5 {[%emt 0:00:01]} b4 {[%emt 0:00:05]} 49. Rxg5 {[%emt 0:00:01]} Kc6 {[%emt 0:00:04]} 50. Rc5+ {[%emt 0:00:07]} Kb6 {[%emt 0:00:01]} 51. Rh5 {[%emt 0:00:02]} Rc3 {[%emt 0:00:01]} 52. Re5 {[%emt 0:00:20]} Rc1 {[%emt 0:00:05]} 53. Kd3 {[%emt 0:00:01]} Rc5 {[%emt 0:00:03]} 54. Re4 {[%emt 0:00:02]} Kb5 {[%emt 0:00:00]} 55. Re7 {[%emt 0:00:03]} Rc3+ {[%emt 0:00:02]} 56. Kd2 {[%emt 0:00:01]} Ka4 {[%emt 0:00:02]} 57. Ra7 {[%emt 0:00:01]} Rc8 {[%emt 0:00:03]} 58. Rh7 {[%emt 0:00:23]} b3 {[%emt 0:00:01]} 59. Rh4+ {[%emt 0:00:01]} Ka3 {[%emt 0:00:02]} 60. Rh5 {[%emt 0:00:01]} a4 {[%emt 0:00:01]} 61. Rb5 {[%emt 0:00:15]} Ka2 {[%emt 0:00:04]} 62. Rb4 {[%emt 0:00:06]} a3 {[%emt 0:00:01]} 63. Rb5 {[%emt 0:00:01]} b2 0-1